fUSD/lending_fUSD_20240822
["ID","MTS","AMOUNT","RATE_DAILY","PERIOD"]
[335529140,1724308238348,-2285.46,0.00010799,2]
[335529142,1724308238357,-2285.46,0.00010799,2]
[335529144,1724308238366,-2285.46,0.00010799,2]
[335529146,1724308238375,-2285.66202145,0.00010799,2]
[335529148,1724308238384,-500.0,0.00010799,2]
[335529150,1724308238393,-2363.51428335,0.000108,2]
[335529152,1724308238402,-401023.60819662,0.000108,2]
[335529154,1724308238414,-8046.48342549,0.000108,2]
[335529156,1724308238425,-10286.6181317,0.000108,2]
[335529158,1724308238436,-404.64145571,0.000108,2]
[335529160,1724308238448,-519.07829482,0.000108,2]
[335529162,1724308238459,-397.72222246,0.000108,2]
[335529214,1724308239710,-150.99,0.000108,2]
[335529216,1724308239720,-1771.43255462,0.000108,2]
[335529219,1724308239732,-46443.75271229,0.000108,2]
[335529221,1724308239743,-1950.0,0.000108,2]
[335529223,1724308239756,-325.57201946,0.000108,2]
[335529375,1724308242686,-349159.69109463,0.000108,2]
[335529376,1724308242772,-357.69482547,0.000108,2]
[335529377,1724308242784,-1067.08377648,0.000108,2]
[335529378,1724308242795,-105517.73012631,0.000108,2]
[335529379,1724308242806,-1160.60801783,0.000108,2]
[335529380,1724308242817,-4986.28499988,0.000108,2]
[335529381,1724308242830,-423.95581672,0.000108,2]
[335529382,1724308242841,-21642.8178528,0.000108,2]
[335529383,1724308243163,-500.0,0.000108,2]
[335529384,1724308243174,-13057.23584385,0.000108,2]
[335529385,1724308243189,-590.0,0.000108,2]
[335529386,1724308243200,-507.53028692,0.000108,2]
[335529387,1724308243211,-15896.8466157,0.000108,2]
[335529388,1724308243221,-8673.86875784,0.000108,2]
[335529389,1724308243232,-1257.99548884,0.000108,2]
[335529390,1724308243247,-613105.44411985,0.000108,2]
[335529415,1724308245753,-952.89323721,0.00010424,2]
[335529416,1724308245762,-10758.0984054,0.000108,2]
[335529417,1724308245846,-705.64483998,0.000108,2]
[335529418,1724308245857,-72756.28769706,0.000108,2]
[335529421,1724308295148,600.0,8.964e-05,2]
[335529422,1724308314624,500.0,8.964e-05,2]
[335529423,1724308503687,560.66,8.219e-05,2]
[335529424,1724308574607,158.21,9.905e-05,2]
[335529425,1724308758087,1000.0,9.883e-05,2]
[335529426,1724308875681,12562.96,9.844e-05,2]
[335529427,1724308988151,551.31,8.219e-05,2]
[335529430,1724309060930,154.77,9.724e-05,2]
[335529431,1724309125771,250.0,9.696e-05,2]
[335529432,1724309252568,200.0,9.643e-05,2]
[335529436,1724309332445,167.64819235,9.899e-05,2]
[335529437,1724309344739,155.23289272,9.899e-05,2]
[335529440,1724309431967,-348.05858469,9.91e-05,2]
[335529441,1724309431978,-555.8615541,9.914e-05,2]
[335529442,1724309431989,-14527.01723432,9.914e-05,2]
[335529443,1724309432002,-5151.0318562,9.914e-05,2]
[335529444,1724309432016,-734.6075021,9.914e-05,2]
[335529445,1724309432027,-2300.0,9.914e-05,2]
[335529446,1724309432043,-15563.84535004,9.914e-05,2]
[335529447,1724309432055,-360.246502,9.914e-05,2]
[335529448,1724309432104,-2624.51000124,9.914e-05,2]
[335529449,1724309432113,-674.50137897,9.929e-05,2]
[335529450,1724309432123,-180.53726857,9.943e-05,2]
[335529451,1724309432132,-315.24319515,9.943e-05,2]
[335529452,1724309432141,-175.9,9.954e-05,2]
[335529453,1724309432150,-150.0,9.973e-05,2]
[335529454,1724309432159,-255.82951222,9.988e-05,2]
[335529455,1724309432168,-219.4127813,9.988e-05,2]
[335529456,1724309432178,-2630.25411663,9.999e-05,2]
[335529457,1724309432192,-23541.02341641,9.999e-05,2]
[335529458,1724309432201,-1050.0,0.0001,2]
[335529459,1724309432211,-3018.12765269,0.0001,5]
[335529460,1724309432220,-219.6,0.00010009,2]
[335529461,1724309432231,-155.0,0.00010009,2]
[335529462,1724309432240,-225.2,0.00010026,2]
[335529463,1724309432250,-629.05909233,0.00010026,2]
[335529464,1724309432260,-150.0,0.00010199,2]
[335529465,1724309432269,-11501.0,0.000102,5]
[335529466,1724309432278,-600.0,0.00010334,2]
[335529467,1724309432287,-500.0,0.00010334,2]
[335529468,1724309432296,-8532.95016221,0.00010334,2]
[335529472,1724309432378,-286.18192272,0.00010334,2]
[335529508,1724309438076,-2132.88791507,0.00010334,2]
[335529509,1724309438085,-551.31,0.00010465,2]
[335529510,1724309438094,-739.92292,0.0001069,2]
[335529511,1724309438105,-2388.38652601,0.00010699,2]
[335529512,1724309438115,-2388.38652601,0.00010699,2]
[335529513,1724309438124,-169.35425013,0.000107,2]
[335529514,1724309438134,-509.61607622,0.00010713,2]
[335529515,1724309438143,-263.24769125,0.0001073,2]
[335529516,1724309438152,-739.92293,0.0001073,2]
[335529517,1724309438162,-739.92292,0.0001077,2]
[335529518,1724309438171,-500.0,0.00010799,2]
[335529519,1724309438180,-500.0,0.00010799,2]
[335529520,1724309438190,-203.28,0.00010799,2]
[335529521,1724309438199,-500.0,0.00010799,2]
[335529522,1724309438209,-219.39623481,0.00010799,2]
[335529523,1724309438218,-500.0,0.00010799,2]
[335529524,1724309438227,-500.0,0.00010799,2]
[335529525,1724309438237,-500.0,0.00010799,2]
[335529527,1724309438248,-500.0,0.00010799,2]
[335529529,1724309438259,-500.0,0.00010799,2]
[335529530,1724309438268,-489.62124423,0.00010799,2]
[335529531,1724309438277,-338.59549731,0.00010799,2]
[335529533,1724309438286,-349.01026758,0.00010799,2]
[335529535,1724309438296,-500.0,0.00010799,2]
[335529537,1724309438305,-500.0,0.00010799,2]
[335529539,1724309438314,-624.36910061,0.00010799,2]
[335529541,1724309438324,-500.0,0.00010799,2]
[335529543,1724309438335,-537.25835364,0.00010799,2]
[335529546,1724309438348,-500.0,0.00010799,2]
[335529548,1724309438359,-500.0,0.00010799,2]
[335529550,1724309438368,-526.98194349,0.00010799,2]
[335529552,1724309438377,-500.0,0.00010799,2]
[335529554,1724309438386,-330.4297331,0.00010799,2]
[335529556,1724309438395,-528.61950668,0.00010799,2]
[335529558,1724309438405,-500.0,0.00010799,2]
[335529560,1724309438414,-649.95295601,0.00010799,2]
[335529562,1724309438424,-500.0,0.00010799,2]
[335529564,1724309438434,-500.0,0.00010799,2]
[335529566,1724309438446,-511.95485554,0.00010799,2]
[335529568,1724309438456,-500.0,0.00010799,2]
[335529570,1724309438465,-500.0,0.00010799,2]
[335529572,1724309438474,-523.87329373,0.00010799,2]
[335529573,1724309438483,-500.0,0.00010799,2]
[335529575,1724309438492,-500.0,0.00010799,2]
[335529577,1724309438502,-518.99976088,0.00010799,2]
[335529579,1724309438511,-500.0,0.00010799,2]
[335529581,1724309438521,-500.0,0.00010799,2]
[335529583,1724309438531,-500.0,0.00010799,2]
[335529585,1724309438540,-500.0,0.00010799,2]
[335529587,1724309438549,-500.0,0.00010799,2]
[335529589,1724309438559,-525.23,0.00010799,2]
[335529591,1724309438568,-4470.2,0.00010799,2]
[335529593,1724309438577,-4470.2,0.00010799,2]
[335529595,1724309438587,-4470.2,0.00010799,2]
[335529597,1724309438595,-4470.2,0.00010799,2]
[335529599,1724309438604,-4470.2,0.00010799,2]
[335529601,1724309438614,-4470.2,0.00010799,2]
[335529603,1724309438623,-4470.2,0.00010799,2]
[335529605,1724309438632,-4470.2,0.00010799,2]
[335529607,1724309438641,-4470.2,0.00010799,2]
[335529609,1724309438650,-4470.2,0.00010799,2]
[335529611,1724309438660,-4470.2,0.00010799,2]
[335529612,1724309438669,-4470.2,0.00010799,2]
[335529614,1724309438678,-4470.2,0.00010799,2]
[335529616,1724309438687,-4470.2,0.00010799,2]
[335529618,1724309438697,-4470.2,0.00010799,2]
[335529620,1724309438707,-4470.2,0.00010799,2]
[335529622,1724309438716,-4470.2,0.00010799,2]
[335529624,1724309438725,-4470.2,0.00010799,2]
[335529626,1724309438735,-4470.2,0.00010799,2]
[335529628,1724309438744,-4470.2,0.00010799,2]
[335529630,1724309438753,-4470.2,0.00010799,2]
[335529632,1724309438762,-4470.2,0.00010799,2]
[335529634,1724309438772,-4470.2,0.00010799,2]
[335529636,1724309438782,-4470.2512364,0.00010799,2]
[335529638,1724309438791,-500.0,0.00010799,2]
[335529640,1724309438800,-500.0,0.00010799,2]
[335529642,1724309438810,-500.0,0.00010799,2]
[335529644,1724309438819,-500.0,0.00010799,2]
[335529646,1724309438828,-338.73,0.00010799,2]
[335529648,1724309438837,-1141.94738341,0.00010799,2]
[335529650,1724309438847,-500.0,0.00010799,2]
[335529652,1724309438856,-500.0,0.00010799,2]
[335529654,1724309438865,-500.0,0.00010799,2]
[335529656,1724309438875,-368.56,0.00010799,2]
[335529657,1724309438884,-500.0,0.00010799,2]
[335529659,1724309438894,-500.0,0.00010799,2]
[335529660,1724309438903,-500.0,0.00010799,2]
[335529662,1724309438912,-316.93,0.00010799,2]
[335529664,1724309438922,-500.0,0.00010799,2]
[335529666,1724309438931,-500.0,0.00010799,2]
[335529668,1724309438941,-269.32488149,0.00010799,2]
[335529669,1724309438950,-592.0,0.000108,2]
[335529671,1724309438960,-515544.59106113,0.000108,2]
[335529675,1724309438985,-492.40723222,0.000108,2]
[335529699,1724309440200,-6737.945527,0.000108,2]
[335529704,1724309440243,-2196.60588612,0.000108,2]
[335529709,1724309440284,-3738.49741325,0.000108,2]
[335529712,1724309440417,-765.68138899,0.000108,2]
[335529713,1724309440475,-104628.36954694,0.000108,2]
[335529937,1724309443128,-23018.06022655,0.000108,2]
[335529943,1724309443399,-1702.90889571,0.000108,2]
[335529946,1724309443418,-2734.9,0.000108,2]
[335529949,1724309443433,-365.83995001,0.000108,2]
[335529951,1724309443448,-481.35413965,0.000108,2]
[335529953,1724309443460,-900.0,0.000108,2]
[335529979,1724309445907,-297.09,0.00010023,2]
[335529980,1724309445916,-532.0,0.000108,2]
[335529981,1724309445926,-1913.94729639,0.000108,2]
[335529982,1724309446033,-252.30117719,0.000108,2]
[335529983,1724309446073,-1336.21180422,0.000108,2]
[335529984,1724309454764,514.57,8.219e-05,2]
[335529986,1724309491575,500.0,8.964e-05,2]
[335529987,1724309513102,500.0,8.964e-05,2]
[335530165,1724309608592,500.0,8.964e-05,2]
[335530166,1724309643970,212.9,9.863e-05,2]
[335530167,1724309682112,309.64,9.858e-05,2]
[335530168,1724309759522,9320.64558111,9.858e-05,2]
[335530169,1724309761338,533.25,9.841e-05,2]
[335530170,1724309768882,791.65079818,9.858e-05,2]
[335530171,1724309801544,840.0,9.828e-05,2]
[335530172,1724309842896,250.0,9.828e-05,2]
[335530173,1724309853881,791.14503336,9.828e-05,2]
[335530174,1724309908154,527.67,8.219e-05,2]
[335530175,1724309925459,2511.73,9.829e-05,2]
[335530176,1724309957875,458.78931347,9.828e-05,2]
[335530177,1724310047534,300.0,9.828e-05,2]
[335530178,1724310064560,336.80860674,9.828e-05,2]
[335530179,1724310156067,176.44,9.693e-05,2]
[335530180,1724310162759,309.64,9.693e-05,2]
[335530181,1724310176745,-155.17057854,9.941e-05,2]
[335530182,1724310176777,-316.88042356,9.943e-05,2]
[335530183,1724310176807,-494.68137196,9.943e-05,2]
[335530184,1724310176838,-368.51502072,9.988e-05,2]
[335530185,1724310176871,-300.0,9.999e-05,2]
[335530186,1724310176954,-416.50521044,0.0001,2]
[335530187,1724310250813,-886.22761371,9.999e-05,2]
[335530188,1724310250843,-155.0,9.999e-05,2]
[335530189,1724310250888,-2404.54477258,0.0001,2]
[335530190,1724310277842,328.0,9.776e-05,2]
[335530191,1724310289095,-174.04998302,0.0001,2]
[335530192,1724310289118,-4.90003396,0.0001,2]
[335530193,1724310320011,-531.64175909,9.999e-05,2]
[335530194,1724310320046,-575.71648182,0.0001,2]
[335530195,1724310320090,-474.28351818,0.0001,2]
[335530196,1724310363031,-1154.0,9.999e-05,2]
[335530197,1724310401681,-344.79787169,9.999e-05,2]
[335530198,1724310401703,-202.40425662,9.999e-05,2]
[335530199,1724310523522,23890.0,9.822e-05,2]
[335530206,1724310590129,1635.59503388,9.822e-05,2]
[335530207,1724310613293,551.56,8.219e-05,2]
[335530219,1724310632000,-150.33188135,9.949e-05,2]
[335530220,1724310632009,-270.83096187,9.988e-05,2]
[335530221,1724310632018,-127.51504438,0.0001,2]
[335530222,1724310632062,-27.92712022,0.0001,2]
[335530223,1724310632071,-813.12299415,0.00010026,2]
[335530224,1724310632080,-155.0,0.00010026,2]
[335530225,1724310632090,-500.0,0.00010334,2]
[335530226,1724310632099,-500.0,0.00010334,2]
[335530227,1724310632108,-551.56,0.00010464,2]
[335530228,1724310632117,-2332.63429015,0.00010505,2]
[335530229,1724310632141,-55.75223586,0.00010505,2]
[335530230,1724310632150,-150.0,0.00010572,2]
[335530231,1724310632161,-141.53864782,0.00010611,2]
[335530232,1724310632178,-8.46135218,0.00010611,2]
[335530233,1724310632187,-300.0,0.00010617,2]
[335530234,1724310632197,-293.66064152,0.00010618,2]
[335530235,1724310632206,-3608.7479498,0.00010618,2]
[335530236,1724310632220,-3391.4420502,0.00010618,2]
[335530237,1724310632230,-155.59736033,0.00010623,2]
[335530238,1724310632240,-500.0,0.0001069,2]
[335530239,1724310632249,-150.0,0.00010698,2]
[335530240,1724310632259,-114.35179549,0.00010699,2]
[335530241,1724310632273,-3122.30050451,0.00010699,2]
[335530242,1724310632282,-454.67820793,0.00010699,2]
[335530243,1724310632296,-647.03001865,0.00010699,2]
[335530244,1724310632307,-933.02727342,0.00010699,2]
[335530245,1724310632316,-150.0,0.00010699,2]
[335530246,1724310632325,-536.65833866,0.00010699,2]
[335530247,1724310632335,-364.4281,0.000107,2]
[335530248,1724310632344,-4045.48324182,0.000107,2]
[335530249,1724310632354,-657.30298068,0.000107,2]
[335530250,1724310632366,-8213.28945376,0.000107,2]
[335530251,1724310632384,-544.02,0.000107,2]
[335530255,1724310632559,-252.67249884,0.000107,2]
[335530256,1724310632571,-696.77431602,0.000107,2]
[335530257,1724310632582,-499.6,0.000107,2]
[335530258,1724310632593,-999.9006,0.000107,2]
[335530259,1724310632604,-1000.3932,0.000107,2]
[335530261,1724310638092,-607.8,0.000107,2]
[335530262,1724310638136,-7240.00000001,0.000107,2]
[335530263,1724310638147,-3160.19150616,0.000107,2]
[335530264,1724310638158,-6062.9094044,0.000107,2]
[335530265,1724310638285,-484.5265281,0.000107,2]
[335530266,1724310638296,-404.28989155,0.000107,2]
[335530267,1724310638333,-933.87587866,0.000107,2]
[335530268,1724310638343,-388.79,0.000107,2]
[335530269,1724310638352,-787.83809445,0.000107,2]
[335530270,1724310638361,-3296.14356857,0.000107,2]
[335530271,1724310638379,-925.30673529,0.000107,2]
[335530272,1724310638391,-254.55269614,0.000107,2]
[335530273,1724310638400,-46.97668198,0.00010707,2]
[335530274,1724310638424,-714.80257308,0.00010707,2]
[335530275,1724310638435,-738.22074494,0.00010707,2]
[335530276,1724310638445,-265.50997571,0.00010713,2]
[335530277,1724310638454,-150.0,0.00010725,2]
[335530278,1724310638463,-456.21377018,0.00010755,2]
[335530279,1724310638473,-433.16165641,0.0001078,2]
[335530301,1724310640280,-6917.61415662,0.0001078,2]
[335530302,1724310640289,-500.0,0.00010799,2]
[335530303,1724310640298,-500.0,0.00010799,2]
[335530304,1724310640307,-500.0,0.00010799,2]
[335530305,1724310640316,-500.0,0.00010799,2]
[335530306,1724310640325,-500.0,0.00010799,2]
[335530307,1724310640334,-270.21,0.00010799,2]
[335530308,1724310640343,-500.0,0.00010799,2]
[335530309,1724310640352,-500.0,0.00010799,2]
[335530310,1724310640361,-500.0,0.00010799,2]
[335530311,1724310640370,-500.0,0.00010799,2]
[335530312,1724310640379,-463.41659004,0.00010799,2]
[335530313,1724310640388,-500.0,0.00010799,2]
[335530314,1724310640397,-500.0,0.00010799,2]
[335530315,1724310640406,-500.0,0.00010799,2]
[335530316,1724310640415,-429.46,0.00010799,2]
[335530317,1724310640424,-500.0,0.00010799,2]
[335530318,1724310640433,-500.0,0.00010799,2]
[335530320,1724310640442,-299.26,0.00010799,2]
[335530321,1724310640451,-500.0,0.00010799,2]
[335530323,1724310640462,-500.0,0.00010799,2]
[335530325,1724310640471,-500.0,0.00010799,2]
[335530327,1724310640481,-500.0,0.00010799,2]
[335530329,1724310640490,-500.0,0.00010799,2]
[335530331,1724310640499,-631.6,0.00010799,2]
[335530333,1724310640508,-155.55548899,0.00010799,2]
[335530335,1724310640517,-500.0,0.00010799,2]
[335530337,1724310640526,-500.0,0.00010799,2]
[335530338,1724310640535,-500.0,0.00010799,2]
[335530340,1724310640545,-248.61,0.00010799,2]
[335530342,1724310640554,-315.19288439,0.00010799,2]
[335530344,1724310640563,-236185.14539143,0.000108,2]
[335530371,1724310643185,-31074.53587172,0.000108,2]
[335530373,1724310673322,500.0,8.964e-05,2]
[335530374,1724310705788,500.0,8.964e-05,2]
[335530375,1724310757144,1635.59503388,8.964e-05,2]
[335530376,1724310760031,737.6,9.903e-05,2]
[335530377,1724310788881,500.0,8.964e-05,2]
[335530378,1724310849643,1635.59503388,8.964e-05,2]
[335530379,1724310897363,8433.41,9.848e-05,2]
[335530380,1724310907120,600.0,8.964e-05,2]
[335530381,1724310912102,2545.44,9.848e-05,2]
[335530382,1724310926103,213.19433324,8.964e-05,2]
[335530383,1724310956646,1635.59503388,8.964e-05,2]
[335530384,1724310972334,200.0,9.833e-05,2]
[335530385,1724311021438,500.0,8.964e-05,2]
[335530386,1724311022689,600.0,8.964e-05,2]
[335530387,1724311048660,1635.59503388,9.833e-05,2]
[335530388,1724311083565,1392.23,9.837e-05,2]
[335530389,1724311083880,450.0,8.964e-05,2]
[335530390,1724311116229,536.57,8.219e-05,2]
[335530391,1724311162657,1635.59503388,8.964e-05,2]
[335530392,1724311177650,1635.59503388,8.219e-05,2]
[335530393,1724311244997,409.92,9.779e-05,2]
[335530394,1724311254016,170.32,9.758e-05,2]
[335530395,1724311259678,640.69,9.791e-05,2]
[335530396,1724311281667,1635.59503388,8.219e-05,2]
[335530397,1724311364683,1635.59503388,8.219e-05,2]
[335530398,1724311368935,2348.59,9.809e-05,2]
[335530399,1724311378426,442.8,9.828e-05,2]
[335530400,1724311392060,4017.73,9.863e-05,2]
[335530401,1724311398848,397.71,9.788e-05,2]
[335530402,1724311471674,1637.84711973,9.788e-05,2]
[335530403,1724311504316,1508.76,9.857e-05,2]
[335530404,1724311504788,807.26052906,9.899e-05,2]
[335530405,1724311534407,26171.27753304,9.899e-05,2]
[335530406,1724311538851,270.55193994,9.899e-05,2]
[335530407,1724311549480,155.0,9.899e-05,2]
[335530408,1724311557880,171.91,9.833e-05,2]
[335530409,1724311569127,189.56,9.806e-05,2]
[335530410,1724311583507,530.1,8.219e-05,2]
[335530413,1724311623266,23900.0,9.798e-05,2]
[335530415,1724311655884,197.88447662,9.899e-05,2]
[335530417,1724311752401,624.83,9.795e-05,2]
[335530418,1724311772640,174.4,9.83e-05,2]
[335530419,1724311815633,672.06,9.845e-05,2]
[335530424,1724311832235,-159.1,9.913e-05,2]
[335530426,1724311832245,-156.0,9.913e-05,2]
[335530428,1724311832254,-45.25116936,9.929e-05,2]
[335530430,1724311832266,-584.59550704,9.929e-05,2]
[335530431,1724311832277,-319.9562027,9.929e-05,2]
[335530432,1724311832286,-301.36924071,9.941e-05,2]
[335530433,1724311832369,-15.35402179,9.941e-05,2]
[335530434,1724311832378,-258.76520718,9.941e-05,2]
[335530435,1724311832387,-170.45499789,9.941e-05,2]
[335530436,1724311832490,-1.46218611,9.941e-05,2]
[335530437,1724311832499,-375.81553789,9.988e-05,2]
[335530467,1724311838304,-529.12011047,9.988e-05,2]
[335530469,1724311838315,-1932.06435164,9.988e-05,2]
[335530471,1724311838324,-299.63339642,9.988e-05,2]
[335530473,1724311838335,-1239.65355195,9.988e-05,2]
[335530476,1724311838346,-64.10698196,9.988e-05,2]
[335530478,1724311838355,-155.50973162,9.988e-05,2]
[335530480,1724311838364,-203.06755488,9.988e-05,2]
[335530482,1724311838373,-300.0,9.998e-05,2]
[335530484,1724311838382,-448.53,0.0001,2]
[335530486,1724311838391,-500.0,0.00010334,2]
[335530487,1724311838400,-600.0,0.00010334,2]
[335530488,1724311838410,-530.1,0.00010468,2]
[335530489,1724311838419,-1900.00814901,0.00010566,2]
[335530490,1724311838433,-171.91718399,0.00010599,2]
[335530491,1724311838442,-369.96146,0.0001069,2]
[335530492,1724311838451,-199.75,0.00010695,2]
[335530493,1724311838460,-150.0,0.00010699,2]
[335530494,1724311838470,-5570.48586811,0.000107,2]
[335530495,1724311838479,-200.0,0.00010773,2]
[335530496,1724311838488,-2740.04531706,0.00010797,2]
[335530497,1724311838504,-485.28526725,0.00010797,2]
[335530498,1724311838515,-335.76750053,0.00010797,2]
[335530499,1724311838527,-290.02472241,0.00010797,2]
[335530500,1724311838538,-230.57757883,0.00010797,2]
[335530501,1724311838547,-500.0,0.00010799,2]
[335530502,1724311838556,-500.0,0.00010799,2]
[335530503,1724311838565,-452.6,0.00010799,2]
[335530504,1724311838574,-500.0,0.00010799,2]
[335530505,1724311838583,-500.0,0.00010799,2]
[335530506,1724311838593,-500.0,0.00010799,2]
[335530507,1724311838602,-500.0,0.00010799,2]
[335530508,1724311838611,-608.11,0.00010799,2]
[335530509,1724311838621,-500.0,0.00010799,2]
[335530510,1724311838630,-500.0,0.00010799,2]
[335530511,1724311838639,-500.0,0.00010799,2]
[335530512,1724311838648,-238.68374582,0.00010799,2]
[335530513,1724311838658,-475.43776581,0.00010799,2]
[335530514,1724311838670,-24.56223419,0.00010799,2]
[335530515,1724311838679,-300.02076518,0.00010799,2]
[335530516,1724311838693,-199.97923482,0.00010799,2]
[335530517,1724311838703,-500.0,0.00010799,2]
[335530518,1724311838712,-157.04291617,0.00010799,2]
[335530519,1724311838721,-1742.14374139,0.00010799,2]
[335530520,1724311838733,-398.64828018,0.00010799,2]
[335530521,1724311838743,-2495.74628135,0.00010799,2]
[335530522,1724311838755,-677.48967088,0.00010799,2]
[335530524,1724311838767,-605.27770885,0.00010799,2]
[335530526,1724311838777,-438.1031577,0.00010799,2]
[335530528,1724311838786,-500.0,0.00010799,2]
[335530530,1724311838795,-262.1686808,0.00010799,2]
[335530532,1724311838805,-500.0,0.00010799,2]
[335530534,1724311838814,-167.6,0.00010799,2]
[335530536,1724311838823,-540.95342901,0.00010799,2]
[335530538,1724311838833,-500.0,0.00010799,2]
[335530540,1724311838841,-484.13892849,0.00010799,2]
[335530542,1724311838852,-118.12005667,0.00010799,2]
[335530544,1724311838861,-529.34133749,0.00010799,2]
[335530546,1724311838871,-500.0,0.00010799,2]
[335530548,1724311838881,-60.45110362,0.00010799,2]
[335530551,1724311838892,-439.54889638,0.00010799,2]
[335530552,1724311838901,-500.0,0.00010799,2]
[335530554,1724311838910,-47.99381276,0.00010799,2]
[335530557,1724311838929,-502.41289945,0.00010799,2]
[335530559,1724311838938,-186.08710055,0.00010799,2]
[335530600,1724311840427,-304.23573553,9.988e-05,2]
[335530601,1724311840438,-408.82490384,0.00010799,2]
[335530602,1724311840448,-150.25041783,0.00010799,2]
[335530603,1724311840459,-288.54346394,0.00010799,2]
[335530604,1724311840471,-125.74486199,0.00010799,2]
[335530605,1724311840480,-561.88749747,0.00010799,2]
[335530606,1724311840489,-52.43764054,0.00010799,2]
[335530607,1724311840500,-496.37790545,0.00010799,2]
[335530608,1724311840510,-549.97934818,0.00010799,2]
[335530609,1724311840520,-500.0,0.00010799,2]
[335530610,1724311840529,-500.0,0.00010799,2]
[335530611,1724311840538,-500.0,0.00010799,2]
[335530612,1724311840548,-500.0,0.00010799,2]
[335530613,1724311840558,-500.0,0.00010799,2]
[335530614,1724311840567,-500.0,0.00010799,2]
[335530615,1724311840576,-500.0,0.00010799,2]
[335530616,1724311840585,-500.0,0.00010799,2]
[335530617,1724311840595,-500.0,0.00010799,2]
[335530618,1724311840604,-500.0,0.00010799,2]
[335530619,1724311840613,-500.0,0.00010799,2]
[335530620,1724311840622,-500.0,0.00010799,2]
[335530621,1724311840631,-500.0,0.00010799,2]
[335530622,1724311840641,-500.0,0.00010799,2]
[335530623,1724311840651,-490.0,0.00010799,2]
[335530624,1724311840663,-500.0,0.00010799,2]
[335530625,1724311840672,-500.0,0.00010799,2]
[335530626,1724311840681,-500.0,0.00010799,2]
[335530627,1724311840691,-500.0,0.00010799,2]
[335530628,1724311840700,-500.0,0.00010799,2]
[335530629,1724311840710,-500.0,0.00010799,2]
[335530630,1724311840719,-500.0,0.00010799,2]
[335530631,1724311840728,-257.76,0.00010799,2]
[335530632,1724311840738,-500.0,0.00010799,2]
[335530633,1724311840747,-642.54362727,0.00010799,2]
[335530634,1724311840756,-596.13,0.00010799,2]
[335530635,1724311840766,-500.0,0.00010799,2]
[335530636,1724311840775,-500.0,0.00010799,2]
[335530637,1724311840785,-500.0,0.00010799,2]
[335530638,1724311840795,-500.0,0.00010799,2]
[335530639,1724311840804,-500.0,0.00010799,2]
[335530640,1724311840813,-500.0,0.00010799,2]
[335530641,1724311840822,-405.2,0.00010799,2]
[335530642,1724311840832,-500.0,0.00010799,2]
[335530643,1724311840842,-500.0,0.00010799,2]
[335530644,1724311840851,-500.0,0.00010799,2]
[335530645,1724311840860,-500.0,0.00010799,2]
[335530646,1724311840869,-500.0,0.00010799,2]
[335530647,1724311840879,-162.7530392,0.00010799,2]
[335530648,1724311840889,-500.0,0.00010799,2]
[335530649,1724311840898,-355.2140584,0.00010799,2]
[335530650,1724311840909,-500.0,0.00010799,2]
[335530652,1724311840926,-533.46958965,0.00010799,2]
[335530654,1724311840936,-521.43394966,0.00010799,2]
[335530656,1724311840945,-526.91448358,0.00010799,2]
[335530658,1724311840954,-500.0,0.00010799,2]
[335530660,1724311840963,-500.0,0.00010799,2]
[335530662,1724311840972,-265.50997571,0.00010799,2]
[335530664,1724311840982,-6270.97041509,0.000108,2]
[335530666,1724311840993,-265.1286,0.000108,2]
[335530668,1724311841005,-3193.55135642,0.000108,2]
[335530670,1724311841020,-270.84196396,0.000108,2]
[335530671,1724311841032,-87457.95765878,0.000108,2]